bitfinex/quotes_ETHUSD_20250629
["timestamp","ask_amount","ask_price","bid_price","bid_amount"]
[1751237363258,2.553,2504.2,2504.1,0.1992]
[1751237363465,0.1992,2504.4,2504.1,0.1992]
[1751237363669,2.554,2504.3,2504.1,0.1992]
[1751237364282,2.554,2504.3,2504.0,0.002]
[1751237364283,1.5225,2504.2,2504.0,0.002]
[1751237364477,10.383,2504.1,2504.0,0.002]
[1751237364635,12.77907044,2504.1,2504.0,0.002]
[1751237364839,2.39616613,2504.0,2503.9,0.002]
[1751237365055,12.77907044,2504.1,2503.1,0.002]
[1751237365056,1.5705,2503.9,2503.1,0.002]
[1751237365251,2.39665586,2503.5,2503.1,0.002]
[1751237365573,9.977,2503.8,2503.1,0.002]
[1751237365878,2.554,2503.4,2503.1,0.002]
[1751237366384,11.37623344,2503.7,2503.1,0.002]
[1751237366385,10.369,2503.3,2503.1,2.39901506]
[1751237366558,9.977,2503.8,2503.1,0.002]
[1751237366747,10.361,2503.7,2503.2,2.39693192]
[1751237366954,10.361,2503.7,2503.2,2.39685807]
[1751237367186,10.361,2503.7,2503.2,2.39691373]
[1751237367480,10.361,2503.7,2503.1,0.002]
[1751237367481,12.79149425,2503.7,2503.3,2.39680509]
[1751237367669,9.977,2503.8,2503.1,2.39898954]
[1751237367670,9.977,2503.8,2503.4,2.39673808]
[1751237367846,9.977,2503.8,2503.1,0.002]
[1751237368038,17.783,2503.8,2503.7,2.39645324]
[1751237368244,20.273,2503.8,2503.5,2.39663417]
[1751237368439,22.45735,2503.8,2503.1,0.002]
[1751237368776,2.39652041,2503.7,2503.1,0.002]
[1751237369257,14.55777029,2503.8,2503.1,0.002]
[1751237369460,2.3966376,2503.6,2503.1,0.002]
[1751237369772,2.39675386,2503.4,2503.1,0.002]
[1751237369938,7.794,2503.3,2503.1,0.002]
[1751237370140,4.02823192,2503.2,2503.1,0.002]
[1751237370350,2.39723869,2502.9,2502.1,0.002]
[1751237370559,10.279,2502.8,2502.1,2.39995242]
[1751237370760,1.6313,2502.6,2502.2,2.39783688]
[1751237370961,11.6123,2502.6,2502.2,2.39783688]
[1751237371160,19.3963,2502.6,2502.5,2.39760239]
[1751237371360,2.49,2502.5,2502.1,0.002]
[1751237371581,11.6123,2502.6,2502.4,2.39762939]
[1751237371791,2.49,2502.5,2502.4,2.39762939]
[1751237371993,9.981,2502.6,2502.5,2.39760239]
[1751237372288,12.471,2502.6,2502.5,2.39760239]
[1751237372596,9.981,2502.6,2502.5,2.39760239]
[1751237373387,9.981,2502.6,2502.2,2.39788137]
[1751237373562,9.981,2502.6,2502.2,2.39788052]
[1751237373769,10.256,2502.5,2502.4,2.3976402]
[1751237373966,9.981,2502.6,2502.5,2.39760239]
[1751237374367,1.6434,2503.4,2503.3,2.39683617]
[1751237374563,1.6434,2503.4,2503.0,2.59625344]
[1751237374564,13.25724,2503.4,2503.0,2.59625344]
[1751237374897,9.983,2503.6,2503.5,2.39664469]
[1751237375115,20.4342,2503.6,2503.5,2.39664469]
[1751237375760,10.1822,2503.6,2503.5,2.39664469]
[1751237375965,20.4302,2503.6,2503.5,2.39664469]
[1751237376562,20.4302,2503.6,2503.2,0.1992]
[1751237376804,22.43836,2503.6,2502.6,2.3974794]
[1751237377002,22.43836,2503.6,2503.1,2.39694509]
[1751237377003,0.1992,2503.4,2503.1,2.39694509]
[1751237377207,0.1992,2503.4,2503.0,2.39711614]
[1751237377208,7.742,2503.3,2503.2,2.39693192]
[1751237377507,9.983,2503.6,2503.4,2.39669684]
[1751237377669,10.4262,2503.5,2503.4,2.39669684]
[1751237378288,0.1992,2503.5,2503.4,2.39669684]
[1751237378489,10.4162,2503.5,2503.4,2.39669684]
[1751237378885,1.6434,2503.8,2503.4,2.39669684]
[1751237379087,2.491,2503.9,2503.4,0.1992]
[1751237379404,0.1992,2504.3,2503.7,0.1992]
[1751237379609,0.1992,2504.3,2503.6,2.39648738]
[1751237379610,10.215,2504.2,2504.1,2.39607044]
[1751237379807,10.215,2504.2,2503.9,0.1992]
[1751237379808,2.491,2504.2,2503.9,0.1992]
[1751237379972,2.491,2504.2,2504.1,2.59527044]
[1751237380414,11.5661,2504.5,2504.4,2.39578342]
[1751237380574,20.197,2504.5,2504.4,2.39578342]
[1751237380775,20.193,2504.5,2504.4,2.39578342]
[1751237380977,12.475,2504.5,2504.4,2.39578342]
[1751237381199,20.187,2504.5,2504.4,2.39578342]
[1751237381373,9.984,2504.5,2504.4,2.39578342]
[1751237381578,12.475,2504.5,2504.3,0.1992]
[1751237381843,12.475,2504.5,2504.0,0.1992]
[1751237381844,0.1992,2504.4,2504.0,0.1992]
[1751237381973,0.1992,2504.4,2504.3,2.39587908]
[1751237382180,9.984,2504.5,2504.4,2.39578342]
[1751237382383,12.475,2504.5,2504.4,2.39578342]
[1751237382606,9.984,2504.5,2504.4,2.39578342]
[1751237383521,0.1992,2505.0,2504.9,2.3953052]
[1751237383707,0.1992,2505.0,2504.8,2.39536573]
[1751237383708,10.188,2505.0,2504.8,2.39536573]
[1751237384222,10.188,2505.0,2504.7,0.1992]
[1751237384404,13.78356539,2505.0,2504.3,2.39584743]
[1751237384609,10.188,2505.0,2504.8,2.3953204]
[1751237384781,10.188,2505.0,2504.9,2.3953052]
[1751237384982,0.2002,2505.1,2504.7,2.39549646]
[1751237385177,0.2002,2505.1,2504.9,2.39524443]
[1751237385395,0.001,2505.1,2505.0,2.39520958]
[1751237385633,2.406,2505.1,2504.9,2.39527321]
[1751237385778,0.001,2505.1,2505.0,2.39520958]
[1751237386101,0.001,2505.1,2505.0,2.59440958]
[1751237389095,0.001,2505.1,2505.0,0.1992]
[1751237389436,0.001,2505.1,2504.4,3.94078044]
[1751237389437,7.649,2505.1,2504.4,3.94078044]
[1751237389741,8.65340871,2505.1,2504.1,1.6382]
[1751237389904,0.1992,2505.0,2504.6,0.1992]
[1751237390212,0.1992,2504.7,2504.3,2.59501315]
[1751237390410,2.405,2504.6,2504.3,0.1992]
[1751237393407,1.7615,2504.6,2504.2,2.3959545]
[1751237393598,10.019,2504.5,2504.2,2.3959545]
[1751237393799,2.405,2504.4,2503.7,2.39641836]
[1751237394099,2.405,2504.4,2503.6,10.0]
[1751237394100,2.405,2504.4,2504.3,2.39587908]
[1751237394507,1.5623,2504.6,2503.9,2.39622145]
[1751237394706,7.605,2504.7,2504.6,2.39554785]
[1751237394937,10.01,2504.7,2504.4,2.39578342]
[1751237395341,10.01,2504.7,2504.5,2.39564055]
[1751237395511,10.01,2504.7,2504.6,2.39559211]
[1751237396137,2.405,2504.7,2504.6,2.39559211]
[1751237396342,2.405,2504.7,2504.6,2.59479211]
[1751237397035,0.001,2505.1,2505.0,2.39520958]
[1751237397342,0.001,2505.1,2505.0,2.59440958]
[1751237397530,2.40391509,2505.3,2505.1,2.39507221]
[1751237397938,4.5546066,2505.3,2505.1,0.1992]
[1751237398146,4.7538066,2505.3,2505.1,2.39511335]
[1751237398313,2.60311509,2505.3,2504.9,0.1992]
[1751237398640,2.40391509,2505.3,2505.2,2.39501836]
[1751237398807,2.40391509,2505.3,2505.2,2.59421836]
[1751237399006,0.002,2505.6,2505.5,2.39473159]
[1751237399507,0.002,2505.6,2505.5,2.59393159]
[1751237400306,0.002,2505.6,2505.1,1.6209]
[1751237400506,0.002,2505.6,2505.4,0.1992]
[1751237400707,0.002,2505.6,2505.5,2.39473159]
[1751237400938,0.002,2505.6,2505.5,2.59393159]
[1751237401304,0.002,2505.6,2505.5,0.1992]
[1751237401734,0.002,2505.6,2505.5,2.59393159]
[1751237401909,0.002,2505.6,2505.5,0.1992]
[1751237402119,0.002,2505.6,2505.5,2.59393159]
[1751237402337,0.002,2505.6,2505.3,2.39492119]
[1751237402338,0.002,2505.6,2505.3,2.39491501]
[1751237402538,0.2012,2505.6,2505.2,2.59418717]
[1751237402843,0.002,2505.6,2505.5,2.59393159]
[1751237403011,0.002,2505.6,2505.5,4.21483159]
[1751237403542,0.002,2505.6,2505.5,14.21483159]
[1751237403922,0.002,2505.6,2505.5,4.21483159]
[1751237404515,0.002,2505.6,2505.5,0.1992]
[1751237404713,2.406,2505.6,2505.4,0.00507499]
[1751237404913,0.2406,2505.5,2505.4,0.00507499]
[1751237405113,2.406,2505.6,2505.4,0.00507499]
[1751237405538,2.39473159,2505.5,2505.4,0.00507499]
[1751237405732,0.1992,2505.5,2505.4,0.00507499]
[1751237406855,2.315,2505.5,2505.4,0.00507499]
[1751237407069,2.317,2505.6,2505.4,0.00507499]
[1751237407346,2.317,2505.6,2505.5,2.39473159]
[1751237409844,0.002,2505.6,2505.5,2.39473159]
[1751237410151,0.002,2505.6,2505.5,12.39473159]
[1751237410919,0.002,2505.6,2505.5,19.90673159]
[1751237412847,0.002,2505.6,2505.5,2.39473159]
[1751237413656,0.002,2505.6,2505.5,10.99774959]
[1751237413823,0.002,2505.6,2505.5,8.89424759]
[1751237414220,0.002,2505.6,2505.5,2.39473159]
[1751237414630,0.002,2505.6,2505.0,1.5905]
[1751237414860,0.002,2505.6,2505.3,2.39483711]
[1751237415055,0.002,2505.6,2504.6,11.5905]
[1751237415257,2.3948092,2505.5,2504.7,2.39546962]
[1751237415459,1.5027,2505.4,2505.0,2.39514507]
[1751237415765,2.315,2505.3,2504.9,2.39526672]
[1751237415959,1.5027,2505.4,2504.4,2.39575382]
[1751237416160,2.317,2505.6,2505.4,2.39481151]
[1751237416457,3.70799,2505.6,2505.3,2.39489685]
[1751237416655,3.70799,2505.6,2505.2,2.39499551]
[1751237417032,3.70799,2505.6,2505.3,2.39491935]
[1751237417233,3.70799,2505.6,2504.9,1.5769]
[1751237417451,3.70799,2505.6,2505.2,2.3949577]
[1751237417648,3.70799,2505.6,2505.2,2.39501577]
[1751237417839,0.370799,2505.5,2505.1,2.39508166]
[1751237418038,2.317,2505.6,2504.6,4.04343437]
[1751237418242,2.317,2505.6,2505.3,2.39483478]
[1751237418548,0.002,2505.6,2504.9,2.3953052]
[1751237418748,0.002,2505.6,2505.5,2.39473159]
[1751237420970,0.002,2505.6,2505.4,2.39479091]
[1751237421372,0.002,2505.6,2505.5,2.39473159]
[1751237421774,0.002,2505.6,2505.4,2.3947915]
[1751237422070,0.002,2505.6,2505.0,7.456]
[1751237422242,0.002,2505.6,2505.1,2.39505685]
[1751237422565,0.002,2505.6,2505.2,2.39493596]
[1751237422868,0.002,2505.6,2505.3,0.1992]
[1751237423065,2.39664071,2505.6,2505.3,0.1992]
[1751237423272,0.1992,2505.4,2504.9,0.1992]
[1751237423444,2.315,2505.3,2505.0,2.39520925]
[1751237423648,2.315,2505.3,2504.9,2.59446562]
[1751237423954,2.315,2505.3,2504.9,0.1992]
[1751237424153,2.315,2505.3,2505.0,2.39513311]
[1751237424342,2.315,2505.3,2504.9,0.1992]
[1751237424544,2.56642,2505.3,2504.9,2.59445041]
[1751237424767,2.56642,2505.3,2504.9,2.39522856]
[1751237424941,2.76562,2505.3,2504.9,2.59442856]
[1751237425458,1.6373,2505.2,2504.9,0.1992]
[1751237425655,2.077592,2505.2,2504.9,0.1992]
[1751237425839,4.47263277,2505.2,2504.9,0.1992]
[1751237426461,2.077592,2505.2,2504.9,0.1992]
[1751237426790,2.315,2505.1,2504.7,0.1992]
[1751237426947,2.315,2505.1,2504.9,0.1992]
[1751237427692,2.315,2505.1,2504.8,2.39531941]
[1751237427857,1.6373,2505.2,2504.9,0.21238385]
[1751237428189,2.315,2505.3,2505.2,2.39499906]
[1751237428557,2.315,2505.3,2505.2,2.59419906]
[1751237428956,3.18684323,2505.3,2504.6,2.39552654]
[1751237429290,3.18684323,2505.3,2504.2,2.39691003]
[1751237429291,1.5314,2504.9,2504.2,0.2002]
[1751237429490,2.39555328,2504.7,2504.2,0.2002]
[1751237429649,4.82682051,2504.6,2504.2,0.2002]
[1751237429988,0.1992,2504.6,2504.2,0.2002]
[1751237430189,2.232,2504.9,2504.3,1.5973]
[1751237430391,2.232,2504.9,2504.8,2.59460083]
[1751237432486,2.4552,2504.9,2504.6,0.1992]
[1751237432691,4.85057217,2504.9,2504.6,0.1992]
[1751237432881,4.85057217,2504.9,2504.2,0.001]
[1751237432882,1.5867,2504.8,2504.3,0.1992]
[1751237433049,2.59469888,2504.7,2504.3,0.1992]
[1751237433252,0.41813989,2504.6,2504.3,0.1992]
[1751237433451,0.1992,2504.7,2504.3,0.1992]
[1751237434341,2.59475807,2504.7,2504.3,0.1992]
[1751237434755,0.1992,2504.7,2504.3,0.1992]
[1751237435160,0.1992,2504.7,2504.2,0.001]
[1751237435161,4.18177908,2504.3,2504.2,0.001]
[1751237435358,6.41477908,2504.3,2504.2,0.001]
[1751237435589,7.29583562,2504.3,2504.2,0.001]
[1751237435960,17.29943562,2504.3,2504.2,0.001]
[1751237436696,3.97486183,2503.9,2503.8,0.001]
[1751237437761,3.8116,2503.9,2503.8,0.001]
[1751237438066,4.39196,2503.9,2503.8,0.001]
[1751237438964,4.0108,2503.9,2503.8,0.001]
[1751237442297,3.9608,2503.9,2503.8,0.001]
[1751237442464,6.35706183,2503.9,2503.8,0.001]
[1751237443905,1.7278,2503.9,2503.8,0.001]
[1751237444192,3.9618,2503.9,2503.8,0.001]
[1751237444395,4.35798,2503.9,2503.8,0.001]
[1751237445596,6.75424183,2503.9,2503.8,0.001]
[1751237446069,14.08624183,2503.9,2503.8,0.001]
[1751237446999,21.21857298,2503.9,2503.8,0.001]
[1751237447198,21.76857298,2503.9,2503.8,0.001]
[1751237448700,25.98457298,2503.9,2503.8,0.001]
[1751237449782,21.76857298,2503.9,2503.8,0.001]
[1751237449990,25.98457298,2503.9,2503.8,0.001]
[1751237450588,4.52024183,2503.9,2503.8,0.001]
[1751237450789,1.7278,2503.9,2503.8,0.001]
[1751237450990,2.4332,2503.9,2503.8,0.001]
[1751237451391,2.4332,2503.9,2503.8,2.39735753]
[1751237451699,2.234,2503.9,2503.8,2.39735753]
[1751237451899,2.234,2503.9,2503.8,0.001]
[1751237452200,2.234,2503.9,2503.8,2.39735753]
[1751237453176,2.234,2503.9,2503.8,0.001]
[1751237453507,13.79298183,2503.9,2503.8,0.001]
[1751237454500,11.39672,2503.9,2503.8,0.001]
[1751237454701,13.79298183,2503.9,2503.8,0.001]
[1751237455276,11.39672,2503.9,2503.8,0.001]
[1751237455587,2.236,2503.9,2503.8,2.39735753]
[1751237455795,8.79193115,2503.9,2503.0,0.001]
[1751237455993,9.566,2503.8,2503.0,0.001]
[1751237456196,13.79831456,2503.7,2503.0,2.39806327]
[1751237456373,7.332,2503.6,2503.3,2.39683038]
[1751237456573,7.332,2503.6,2503.0,0.001]
[1751237456971,2.39689532,2503.3,2503.0,0.001]
[1751237457176,7.332,2503.2,2503.0,0.001]
[1751237457376,4.63102768,2503.1,2503.0,0.001]
[1751237458176,16.16722768,2503.1,2503.0,0.001]
[1751237459575,11.5362,2503.1,2503.0,0.001]
[1751237459770,21.0502,2503.1,2503.0,0.001]
[1751237460002,11.5362,2503.1,2503.0,0.001]
[1751237460181,19.499,2503.1,2503.0,0.001]
[1751237460808,12.166,2503.1,2503.0,2.39812345]
[1751237461023,12.166,2503.1,2503.0,0.001]
[1751237462011,9.984,2503.1,2503.0,2.39812345]
[1751237462172,12.166,2503.1,2503.0,2.39812345]
[1751237463611,13.3826,2503.1,2503.0,0.001]
[1751237463909,31.81505883,2503.1,2503.0,0.001]
[1751237464209,31.81505883,2503.1,2501.2,2.39881461]
[1751237464210,2.39779632,2502.3,2501.2,2.39881461]
[1751237464408,2.182,2502.2,2501.8,2.39820712]
[1751237464612,3.28647,2502.2,2501.4,1.5409]
[1751237464783,5.68441755,2502.2,2501.5,2.39854205]
[1751237464979,7.333,2502.1,2501.7,2.39833916]
[1751237465212,9.73098569,2502.1,2501.2,2.39875755]
[1751237465414,9.33887653,2502.0,2501.0,0.001]
[1751237465714,7.13233115,2501.6,2501.0,0.001]
[1751237465912,0.1992,2501.4,2501.1,2.39885139]
[1751237466114,4.58058285,2501.5,2501.0,0.001]
[1751237466411,0.1992,2501.1,2501.0,0.001]
[1751237466618,9.1801,2501.1,2501.0,0.001]
[1751237466780,9.1801,2501.1,2500.6,0.2167566]
[1751237466781,10.98802318,2500.7,2500.6,0.2167566]
[1751237466978,23.54922818,2500.7,2500.6,0.2167566]
[1751237467730,1.5463,2500.0,2499.2,5.39436682]
[1751237467881,1.5463,2500.0,2499.2,2.60069904]
[1751237467882,0.2,2499.6,2499.2,2.60069904]
[1751237468081,8.67863115,2500.0,2499.1,2.9936126]
[1751237468317,9.515,2499.9,2499.1,2.9936126]
[1751237468633,9.515,2499.8,2499.2,2.40075752]
[1751237468837,0.2,2499.4,2499.1,2.9936126]
[1751237469114,0.2,2499.2,2498.9,2.9936126]
[1751237469320,0.2,2498.9,2498.8,2.9936126]
[1751237469488,0.2,2498.9,2498.7,2.9936126]
[1751237469692,0.2,2498.9,2498.1,6.88185915]
[1751237469693,0.2,2498.9,2498.8,5.39476515]
[1751237470008,2.383,2498.9,2498.7,2.9936126]
[1751237470512,2.383,2498.9,2498.7,2.40117575]
[1751237470692,0.2,2498.9,2498.8,5.39476515]
[1751237470893,2.383,2498.9,2498.8,5.39476515]
[1751237471104,2.383,2498.9,2498.8,2.9936126]
[1751237471286,3.3548,2498.9,2498.5,2.40143532]
[1751237471614,0.2,2498.6,2498.5,2.40144086]
[1751237471828,0.2,2498.6,2498.5,3.90874086]
[1751237471984,2.184,2499.5,2499.4,2.40057613]
[1751237472184,2.184,2499.6,2499.3,1.5073]
[1751237472395,2.184,2499.6,2499.5,2.40048009]
[1751237472596,2.184,2499.6,2498.9,2.40101219]
[1751237472597,1.63124311,2501.1,2499.7,2.40028803]
[1751237472818,2.184,2500.8,2500.7,2.39932818]
[1751237473518,2.184,2500.8,2500.5,2.39952009]
[1751237473843,2.184,2500.7,2500.4,2.39953156]
[1751237474121,2.184,2500.6,2500.5,2.39944578]
[1751237474287,2.184,2500.6,2500.4,2.39960523]
[1751237474485,2.184,2500.6,2499.7,3.92784465]
[1751237474685,2.184,2500.6,2500.2,2.39971364]
[1751237474910,2.4024,2500.6,2500.2,2.39971364]
[1751237475133,2.4024,2500.6,2500.3,2.39970858]
[1751237475493,2.184,2500.6,2499.7,3.92784465]
[1751237475693,7.352,2501.1,2500.7,2.39931834]
[1751237475921,2.184,2501.0,2500.7,2.39931834]
[1751237476226,2.184,2501.0,2500.4,2.39957058]
[1751237476536,4.58304179,2501.0,2499.8,2.40019201]
[1751237476702,1.19350418,2500.9,2499.8,2.40019201]
[1751237476905,2.845455,2501.3,2499.8,2.40019201]
[1751237477230,2.184,2500.8,2500.7,2.39932818]
[1751237477891,1.200555,2501.3,2500.7,1.607]
[1751237478235,2.184,2501.0,2500.9,2.39906852]
[1751237480004,2.184,2501.0,2500.6,0.001]
[1751237480208,2.55483,2500.9,2500.8,2.39923224]
[1751237480391,2.184,2500.9,2500.8,2.39923224]
[1751237480596,11.5193,2501.5,2500.9,2.39910484]
[1751237480792,9.523,2501.4,2500.9,2.39910484]
[1751237481029,2.39876213,2501.3,2500.6,0.001]
[1751237481226,4.30425793,2501.2,2500.6,0.001]
[1751237481905,1.90540933,2501.2,2500.6,0.001]
[1751237482112,2.39901176,2501.1,2500.6,0.001]
[1751237482427,2.3990581,2501.0,2500.6,0.001]
[1751237482804,1.90540933,2501.2,2500.6,0.001]
[1751237483005,7.339,2501.0,2500.6,0.001]
[1751237483206,4.02601668,2500.9,2500.6,0.001]
[1751237483507,2.184,2500.8,2500.6,0.001]
[1751237484537,1.6268,2500.9,2500.6,0.001]
[1751237484838,2.3832,2500.8,2500.7,2.39932818]
[1751237486030,9.995,2501.5,2500.6,0.001]
[1751237486327,2.184,2501.3,2501.2,2.39884855]
[1751237486621,2.184,2501.3,2501.0,1.5227]
[1751237486622,2.3832,2501.3,2501.0,2.39903412]
[1751237486830,2.3832,2501.3,2501.1,2.3989356]
[1751237487331,0.1992,2501.2,2500.7,1.7219]
[1751237487525,0.1992,2501.2,2501.0,2.39898695]
[1751237487831,2.184,2502.7,2501.3,10.0]
[1751237488030,0.2184,2502.6,2501.4,4.00035675]
[1751237488206,0.2184,2502.6,2502.3,2.39778669]
[1751237488410,0.2184,2502.6,2501.4,1.6017]
[1751237488620,9.53000778,2502.5,2501.8,2.3982021]
[1751237488931,2.184,2502.4,2502.1,2.39791546]
[1751237489129,0.2184,2502.3,2502.1,2.39791546]
[1751237489318,0.2184,2502.3,2502.2,2.39788985]
[1751237489521,2.182,2502.3,2502.0,2.39805073]
[1751237489714,2.182,2502.3,2501.4,1.6017]
[1751237489715,2.182,2502.3,2502.1,2.39797147]
[1751237489919,2.182,2502.3,2502.2,2.39788985]
[1751237490131,0.002,2502.4,2502.3,2.39779402]
[1751237490429,2.184,2502.4,2502.3,2.39779402]
[1751237491398,0.002,2502.4,2502.3,2.39779402]
[1751237492703,0.002,2502.4,2502.1,1.5255]
[1751237493001,8.76653115,2502.3,2501.1,1.6537]
[1751237493343,3.05885312,2502.2,2501.1,1.6537]
[1751237493635,3.05885312,2502.2,2501.5,2.39849255]
[1751237493820,3.05885312,2502.2,2501.6,2.39844791]
[1751237494536,3.05885312,2502.2,2501.5,2.39852702]
[1751237494537,5.45677017,2502.2,2501.5,2.39852702]
[1751237494735,5.45677017,2502.2,2501.1,1.6537]
[1751237494736,13.05085312,2502.2,2501.1,1.6537]
[1751237494905,0.55,2501.8,2500.7,3.9315251]
[1751237495105,0.55,2501.6,2500.6,2.40039087]
[1751237495409,0.55,2501.6,2500.7,2.39929578]
[1751237495410,2.39866917,2501.4,2500.7,2.39929578]
[1751237495997,2.182,2501.3,2501.0,2.39903906]
[1751237496202,2.39852898,2501.6,2500.9,2.39910809]
[1751237496402,2.182,2501.2,2500.6,0.001]
[1751237497014,2.182,2501.1,2500.6,0.001]
[1751237497333,2.182,2501.1,2500.9,2.39907142]
[1751237497535,2.182,2501.1,2500.8,2.39920166]
[1751237497736,2.182,2501.1,2500.6,0.001]
[1751237497939,2.3812,2501.1,2500.7,2.5985191]
[1751237498254,2.7922643,2501.5,2500.8,2.39922316]
[1751237498437,2.182,2501.0,2500.8,2.39922316]
[1751237498607,0.1992,2501.1,2500.6,0.2002]
[1751237498810,2.182,2501.0,2500.8,2.39919456]
[1751237499939,2.182,2501.0,2500.6,0.2002]
[1751237500141,2.182,2501.0,2500.6,2.59960774]
[1751237500307,2.182,2501.0,2500.7,2.39932446]
[1751237500503,2.182,2500.9,2500.6,0.001]
[1751237500704,0.1992,2500.7,2500.6,0.001]
[1751237501207,2.3992349,2500.8,2500.6,0.001]
[1751237501405,4.81929583,2500.9,2500.6,0.001]
[1751237501648,2.42012,2500.9,2500.6,0.001]
[1751237501813,2.182,2500.9,2500.8,0.001]
[1751237503744,2.182,2500.9,2500.8,2.40023224]
[1751237504018,2.182,2500.9,2500.8,2.40022563]
[1751237505255,2.79225235,2501.5,2501.0,2.39896863]
[1751237505256,0.3936729,2501.5,2501.0,2.39896863]
[1751237505548,2.182,2501.4,2501.0,2.39896863]
[1751237505764,3.17306729,2501.4,2501.0,2.39896863]
[1751237505954,2.182,2501.3,2501.1,2.39890858]
[1751237506646,0.3936729,2501.5,2501.1,2.39890858]
[1751237506851,2.182,2501.4,2501.0,2.39896761]
[1751237507058,2.182,2501.4,2500.9,2.39910155]
[1751237507221,2.182,2501.4,2501.0,2.39902713]
[1751237508521,2.182,2501.4,2500.9,2.39913631]
[1751237508755,2.182,2501.4,2501.0,2.39903921]
[1751237508957,0.2182,2501.3,2501.0,2.39903921]
[1751237509739,2.182,2501.2,2501.0,2.39903921]
[1751237510152,2.182,2501.2,2500.9,2.39911407]
[1751237510852,2.182,2501.2,2501.0,2.39902803]
[1751237511357,2.182,2501.2,2501.1,2.39894446]
[1751237511544,2.182,2501.2,2500.9,2.59833496]
[1751237511545,2.182,2501.2,2500.9,2.59827947]
[1751237511749,2.182,2501.1,2501.0,2.39901539]
[1751237512841,2.182,2501.3,2501.0,2.39901355]
[1751237513044,2.182,2501.3,2501.1,2.39894446]
[1751237513248,2.182,2501.3,2501.2,2.39883399]
[1751237513763,2.182,2501.3,2501.1,2.59810123]
[1751237514559,2.182,2501.4,2501.1,2.39887762]
[1751237514741,2.182,2501.4,2501.2,2.59798615]
[1751237515466,2.182,2501.7,2501.6,2.39846498]
[1751237515843,2.182,2501.7,2501.5,2.59773871]
[1751237516332,2.182,2501.7,2501.6,2.39846498]
[1751237517055,2.182,2501.7,2501.5,2.59772363]
[1751237517760,2.4002,2501.7,2501.1,1.522]
[1751237517963,2.59766565,2501.6,2501.2,0.1992]
[1751237518167,0.1992,2501.6,2501.2,0.1992]
[1751237518372,0.85049857,2501.6,2501.2,0.1992]
[1751237518952,0.85049857,2501.6,2501.2,2.59803753]
[1751237519665,0.85049857,2501.6,2501.2,0.1992]
[1751237519864,3.24902853,2501.6,2501.2,0.1992]
[1751237520164,0.1992,2501.4,2501.0,0.1992]
[1751237520355,0.52411163,2501.4,2501.0,0.1992]
[1751237520559,0.52411163,2501.4,2501.0,2.59823366]
[1751237521134,0.52411163,2501.4,2501.0,0.1992]
[1751237521466,0.32491163,2501.4,2500.8,0.001]
[1751237521768,4.00140649,2501.0,2500.8,0.001]
[1751237521945,4.57613631,2500.9,2500.8,0.001]
[1751237522144,21.70146746,2500.9,2500.8,0.001]
[1751237522485,23.33636746,2500.9,2500.8,0.001]
[1751237522692,23.88636746,2500.9,2500.8,0.001]
[1751237522889,14.58422818,2500.7,2500.6,0.001]
[1751237523033,14.58422818,2500.7,2500.1,0.001]
[1751237523034,4.03470801,2500.2,2500.1,0.001]
[1751237523240,20.67203916,2500.2,2500.1,0.001]
[1751237523439,11.16703916,2500.2,2500.1,0.001]
[1751237523640,13.53870801,2500.2,2500.1,0.001]
[1751237523870,14.89257881,2500.2,2500.1,0.001]
[1751237524072,12.4927708,2500.2,2500.1,0.001]
[1751237524249,1.6349,2500.2,2500.1,0.001]
[1751237524442,10.0,2500.8,2500.1,0.001]
[1751237524443,1.6349,2500.6,2500.1,0.001]
[1751237524767,1.6349,2500.6,2500.2,2.39980801]
[1751237524971,2.177,2500.5,2500.2,2.39980801]
[1751237525171,2.177,2500.5,2500.1,2.40087408]
[1751237525372,1.6349,2500.6,2500.1,2.40088594]
[1751237525569,12.62154112,2500.9,2500.4,2.39961606]
[1751237525570,2.177,2500.5,2500.4,2.39961606]
[1751237526086,9.993,2500.9,2500.2,1.5905]
[1751237526379,2.177,2500.5,2500.4,2.39961606]
[1751237526536,2.177,2500.5,2500.1,2.40088185]
[1751237527171,2.177,2500.5,2500.1,0.001]
[1751237527470,0.2177,2500.4,2500.1,0.001]
[1751237528472,7.325,2500.8,2500.4,2.39957279]
[1751237528641,4.57734811,2500.7,2500.1,2.4008811]
[1751237529360,2.39942413,2500.6,2500.1,0.001]
[1751237529574,2.178,2500.7,2500.1,0.001]
[1751237529575,4.57735637,2500.7,2500.1,0.001]
[1751237529743,2.39958036,2500.5,2500.1,0.001]
[1751237529943,3.58972661,2500.6,2500.1,0.001]
[1751237530144,1.5076,2500.5,2500.1,0.001]
[1751237530340,3.90718031,2500.5,2500.1,0.001]
[1751237530649,9.503,2500.4,2500.1,2.40089204]
[1751237530866,9.503,2500.4,2500.1,0.001]
[1751237531174,10.72308356,2500.4,2500.1,0.001]
[1751237531479,1.22008356,2500.4,2500.1,0.001]
[1751237531640,2.178,2500.3,2500.1,0.001]
[1751237532757,0.1992,2500.2,2500.1,0.001]
[1751237534121,2.59900801,2500.2,2500.1,0.001]
[1751237534396,0.1992,2500.2,2500.1,0.001]
[1751237534688,12.10000801,2500.2,2500.1,0.001]
[1751237534891,14.26321346,2500.2,2500.1,0.001]
[1751237535456,15.88121346,2500.2,2500.1,0.001]
[1751237536385,3.98040545,2500.2,2500.1,0.001]
[1751237536569,2.178,2500.2,2500.1,0.001]
[1751237538094,4.57780801,2500.2,2500.1,0.001]